fUST/lending_fUST_20260112
["ID","MTS","AMOUNT","RATE_DAILY","PERIOD"]
[401347837,1768150232500,-500.0,8.262e-05,2]
[401347838,1768150232509,-500.0,8.262e-05,2]
[401347839,1768150232519,-500.0,8.262e-05,2]
[401347840,1768150232529,-500.0,8.262e-05,2]
[401347841,1768150232540,-500.0,8.262e-05,2]
[401347842,1768150232550,-500.0,8.262e-05,2]
[401347843,1768150232559,-500.0,8.262e-05,2]
[401347844,1768150232569,-500.0,8.262e-05,2]
[401347845,1768150232578,-500.0,8.262e-05,2]
[401347846,1768150232588,-500.0,8.262e-05,2]
[401347847,1768150232598,-500.0,8.262e-05,2]
[401347848,1768150232607,-500.0,8.262e-05,2]
[401347849,1768150232617,-500.0,8.262e-05,2]
[401347850,1768150232626,-500.0,8.262e-05,2]
[401347851,1768150232636,-500.0,8.262e-05,2]
[401347852,1768150232646,-500.0,8.262e-05,2]
[401347853,1768150232655,-500.0,8.262e-05,2]
[401347854,1768150232665,-500.0,8.262e-05,2]
[401347855,1768150232675,-500.0,8.262e-05,2]
[401347856,1768150232684,-500.0,8.262e-05,2]
[401347857,1768150232694,-500.0,8.262e-05,2]
[401347858,1768150232705,-462.45828424,8.262e-05,2]
[401347859,1768150232715,-500.0,8.262e-05,2]
[401347860,1768150232725,-500.0,8.262e-05,2]
[401347861,1768150232735,-500.0,8.262e-05,2]
[401347862,1768150232745,-500.0,8.262e-05,2]
[401347863,1768150232754,-500.0,8.262e-05,2]
[401347864,1768150232767,-500.0,8.262e-05,2]
[401347865,1768150232777,-365.77562793,8.262e-05,2]
[401347866,1768150232787,-500.0,8.262e-05,2]
[401347867,1768150232797,-500.0,8.262e-05,2]
[401347868,1768150232807,-500.0,8.262e-05,2]
[401347869,1768150232819,-500.0,8.262e-05,2]
[401347870,1768150232829,-500.0,8.262e-05,2]
[401347871,1768150232839,-500.0,8.262e-05,2]
[401347872,1768150232849,-500.0,8.262e-05,2]
[401347873,1768150232861,-500.0,8.262e-05,2]
[401347874,1768150232871,-500.0,8.262e-05,2]
[401347875,1768150232881,-500.0,8.262e-05,2]
[401347876,1768150232890,-500.0,8.262e-05,2]
[401347877,1768150232900,-500.0,8.262e-05,2]
[401347878,1768150232912,-500.0,8.262e-05,2]
[401347879,1768150232922,-500.0,8.262e-05,2]
[401347880,1768150232932,-500.0,8.262e-05,2]
[401347881,1768150232941,-500.0,8.262e-05,2]
[401347882,1768150232951,-500.0,8.262e-05,2]
[401347883,1768150232960,-500.0,8.262e-05,2]
[401347884,1768150232970,-500.0,8.262e-05,2]
[401347885,1768150232979,-500.0,8.262e-05,2]
[401347886,1768150232989,-646.11130253,8.262e-05,2]
[401347887,1768150232999,-500.0,8.262e-05,2]
[401347888,1768150233008,-500.0,8.262e-05,2]
[401347889,1768150233017,-500.0,8.262e-05,2]
[401347890,1768150233027,-500.0,8.262e-05,2]
[401347891,1768150233037,-500.0,8.262e-05,2]
[401347892,1768150233047,-500.0,8.262e-05,2]
[401347893,1768150233058,-500.0,8.262e-05,2]
[401347894,1768150233068,-500.0,8.262e-05,2]
[401347895,1768150233078,-500.0,8.262e-05,2]
[401347896,1768150233089,-500.0,8.262e-05,2]
[401347897,1768150233100,-500.0,8.262e-05,2]
[401347898,1768150233110,-500.0,8.262e-05,2]
[401347899,1768150233121,-500.0,8.262e-05,2]
[401347900,1768150233131,-500.0,8.262e-05,2]
[401347901,1768150233140,-500.0,8.262e-05,2]
[401347902,1768150233150,-631.15056478,8.262e-05,2]
[401347903,1768150233160,-500.0,8.262e-05,2]
[401347904,1768150233170,-631.15056478,8.262e-05,2]
[401347905,1768150233179,-500.0,8.262e-05,2]
[401347906,1768150233189,-631.15056478,8.262e-05,2]
[401347907,1768150233198,-500.0,8.262e-05,2]
[401347908,1768150233209,-631.15056478,8.262e-05,2]
[401347909,1768150233220,-500.0,8.262e-05,2]
[401347910,1768150233230,-300.77491132,8.262e-05,2]
[401347911,1768150233373,-330.37565346,8.262e-05,2]
[401347912,1768150233383,-631.15056478,8.262e-05,2]
[401347913,1768150233401,-631.15056478,8.262e-05,2]
[401347914,1768150233414,-97.72732662,8.262e-05,2]
[401347915,1768150233428,-402.27267338,8.262e-05,2]
[401347916,1768150233438,-631.15056478,8.262e-05,2]
[401347917,1768150233448,-500.0,8.262e-05,2]
[401347918,1768150233458,-631.15056478,8.262e-05,2]
[401347919,1768150233468,-631.15056478,8.262e-05,2]
[401347920,1768150233478,-500.0,8.262e-05,2]
[401347921,1768150233487,-631.15056478,8.262e-05,2]
[401347922,1768150233498,-500.0,8.262e-05,2]
[401347923,1768150233508,-631.15056478,8.262e-05,2]
[401347924,1768150233519,-631.15056478,8.262e-05,2]
[401347925,1768150233531,-500.0,8.262e-05,2]
[401347926,1768150233542,-631.15056478,8.262e-05,2]
[401347927,1768150233552,-631.15056478,8.262e-05,2]
[401347928,1768150233563,-500.0,8.262e-05,2]
[401347929,1768150233574,-631.15056478,8.262e-05,2]
[401347930,1768150233584,-631.15056478,8.262e-05,2]
[401347931,1768150233755,-500.0,8.262e-05,2]
[401347932,1768150233767,-631.15056478,8.262e-05,2]
[401347933,1768150233777,-500.0,8.262e-05,2]
[401347934,1768150233787,-631.15056478,8.262e-05,2]
[401347935,1768150233797,-631.15056478,8.262e-05,2]
[401347936,1768150233810,-500.0,8.262e-05,2]
[401347937,1768150233820,-631.15056478,8.262e-05,2]
[401347938,1768150233836,-500.0,8.262e-05,2]
[401347939,1768150233850,-631.15056478,8.262e-05,2]
[401347940,1768150233859,-271.79014472,8.262e-05,2]
[401347941,1768150233869,-631.15056478,8.262e-05,2]
[401347942,1768150233878,-631.15056478,8.262e-05,2]
[401347943,1768150233887,-631.15056478,8.262e-05,2]
[401347944,1768150233899,-631.15056478,8.262e-05,2]
[401347945,1768150233911,-631.15056478,8.262e-05,2]
[401347946,1768150233921,-631.15056478,8.262e-05,2]
[401347947,1768150233930,-631.15056478,8.262e-05,2]
[401347948,1768150233940,-631.15056478,8.262e-05,2]
[401347949,1768150233950,-631.15056478,8.262e-05,2]
[401347950,1768150233960,-631.15056478,8.262e-05,2]
[401347951,1768150233969,-631.15056478,8.262e-05,2]
[401347952,1768150233979,-631.15056478,8.262e-05,2]
[401347953,1768150233989,-631.15056478,8.262e-05,2]
[401347954,1768150233999,-631.15056478,8.262e-05,2]
[401347955,1768150234009,-631.15056478,8.262e-05,2]
[401347956,1768150234019,-631.15056478,8.262e-05,2]
[401347957,1768150234029,-631.15056478,8.262e-05,2]
[401347958,1768150234039,-631.15056478,8.262e-05,2]
[401347959,1768150234049,-631.15056478,8.262e-05,2]
[401347960,1768150234059,-631.15056478,8.262e-05,2]
[401347961,1768150234069,-631.15056478,8.262e-05,2]
[401347962,1768150234079,-631.15056478,8.262e-05,2]
[401347963,1768150234089,-631.15056478,8.262e-05,2]
[401347964,1768150234099,-631.15056478,8.262e-05,2]
[401347965,1768150234109,-631.15056478,8.262e-05,2]
[401347966,1768150234119,-631.15056478,8.262e-05,2]
[401347967,1768150234129,-631.15056478,8.262e-05,2]
[401347968,1768150234139,-631.15056478,8.262e-05,2]
[401347969,1768150234148,-631.15056478,8.262e-05,2]
[401347970,1768150234158,-631.15056478,8.262e-05,2]
[401347971,1768150234167,-631.15056478,8.262e-05,2]
[401347972,1768150234177,-631.15056478,8.262e-05,2]
[401347973,1768150234187,-631.15056478,8.262e-05,2]
[401347974,1768150234198,-631.15056478,8.262e-05,2]
[401347975,1768150234207,-631.15056478,8.262e-05,2]
[401347976,1768150234217,-631.15056478,8.262e-05,2]
[401347977,1768150234227,-599.59303654,8.262e-05,2]
[401347978,1768150234237,-599.59303654,8.262e-05,2]
[401347979,1768150234248,-599.59303654,8.262e-05,2]
[401347980,1768150234258,-599.59303654,8.262e-05,2]
[401347981,1768150234268,-599.59303654,8.262e-05,2]
[401347982,1768150234277,-599.59303654,8.262e-05,2]
[401347983,1768150234287,-599.59303654,8.262e-05,2]
[401347984,1768150234297,-599.59303654,8.262e-05,2]
[401347985,1768150234307,-599.59303654,8.262e-05,2]
[401347986,1768150234317,-599.59303654,8.262e-05,2]
[401347987,1768150234328,-599.59303654,8.262e-05,2]
[401347988,1768150234340,-599.59303654,8.262e-05,2]
[401347989,1768150234350,-599.59303654,8.262e-05,2]
[401347990,1768150234360,-599.59303654,8.262e-05,2]
[401347991,1768150234370,-599.59303654,8.262e-05,2]
[401347992,1768150234380,-599.59303654,8.262e-05,2]
[401347993,1768150234389,-599.59303654,8.262e-05,2]
[401347994,1768150234399,-599.59303648,8.262e-05,2]
[401347995,1768150234409,-50000.0,8.262e-05,2]
[401347996,1768150234419,-455.65,8.262e-05,2]
[401347997,1768150234429,-303.512707,8.269e-05,2]
[401347998,1768150234438,-154.94,8.5e-05,2]
[401347999,1768150234450,-300.0,8.536e-05,2]
[401348000,1768150234460,-300.0,8.536e-05,2]
[401348001,1768150234469,-300.0,8.536e-05,2]
[401348002,1768150234479,-300.0,8.536e-05,2]
[401348003,1768150234489,-300.0,8.536e-05,2]
[401348004,1768150234498,-300.0,8.536e-05,2]
[401348005,1768150234508,-300.0,8.536e-05,2]
[401348006,1768150234517,-300.0,8.536e-05,2]
[401348007,1768150234527,-300.0,8.536e-05,2]
[401348008,1768150234538,-300.0,8.536e-05,2]
[401348009,1768150234547,-300.0,8.536e-05,2]
[401348010,1768150234557,-300.0,8.536e-05,2]
[401348011,1768150234567,-300.0,8.536e-05,2]
[401348012,1768150234576,-300.0,8.536e-05,2]
[401348013,1768150234585,-300.0,8.536e-05,2]
[401348014,1768150234595,-600.0,8.536e-05,2]
[401348015,1768150234604,-3983.34129364,8.536e-05,2]
[401348016,1768150234613,-455.65,8.536e-05,2]
[401348017,1768150234622,-348.51,8.6e-05,2]
[401348018,1768150234632,-455.65,8.81e-05,2]
[401348019,1768150234641,-32619.1191011,8.906e-05,2]
[401348020,1768150234652,-455.65,9.084e-05,2]
[401348021,1768150234667,-420.0,9.087e-05,2]
[401348022,1768150234678,-300.0,9.087e-05,2]
[401348023,1768150234689,-420.0,9.087e-05,2]
[401348024,1768150234698,-348.51,9.1e-05,2]
[401348025,1768150234709,-154.94,9.3e-05,2]
[401348026,1768150234719,-455.65900327,9.358e-05,2]
[401348027,1768150234728,-720.0,9.39e-05,2]
[401348028,1768150234738,-348.51,9.6e-05,2]
[401348029,1768150234749,-363.96077983,9.887e-05,2]
[401348030,1768150234766,-587.0,9.996e-05,2]
[401348031,1768150234775,-348.51,0.000101,2]
[401348032,1768150234785,-6445.77011556,0.00010152,2]
[401348033,1768150234840,1227.25546484,8.261e-05,2]
[401348034,1768150234908,1227.25546484,8.261e-05,2]
[401348035,1768150234992,271.33296074,8.261e-05,2]
[401348036,1768150235016,955.9225041,8.261e-05,2]
[401348037,1768150235137,1227.25546484,8.261e-05,2]
[401348038,1768150235276,1227.25546484,8.261e-05,2]
[401348039,1768150235381,1227.25546484,8.261e-05,2]
[401348040,1768150235638,1227.25546484,8.261e-05,2]
[401348041,1768150235967,1227.25546484,8.261e-05,2]
[401348042,1768150236216,1227.25546484,8.261e-05,2]
[401348043,1768150236260,1227.25546484,8.261e-05,2]
[401348044,1768150236295,453.29924202,8.261e-05,2]
[401348045,1768150236318,773.95622282,8.261e-05,2]
[401348046,1768150236389,1227.25546484,8.261e-05,2]
[401348047,1768150236486,1227.25546484,8.261e-05,2]
[401348048,1768150236591,1227.25546484,8.261e-05,2]
[401348062,1768150238155,-1901.02060819,0.00010152,2]
[401348063,1768150238166,-154.94,0.000102,2]
[401348064,1768150238177,-250.0,0.00010243,2]
[401348065,1768150238188,-864.0,0.00010329,2]
[401348066,1768150238197,-348.51,0.000106,2]
[401348067,1768150238207,-227.4370136,0.00010924,2]
[401348068,1768150238218,-823.0,0.00010995,2]
[401348069,1768150238228,-151.0,0.00011,2]
[401348070,1768150238239,-151.0,0.00011,2]
[401348071,1768150238249,-500.0,0.00011096,2]
[401348072,1768150238259,-154.94,0.000111,2]
[401348073,1768150238269,-348.51,0.000112,2]
[401348074,1768150238279,-500.0,0.00011233,2]
[401348075,1768150238289,-1000.0,0.00011362,2]
[401348076,1768150238299,-500.0,0.0001137,2]
[401348077,1768150238309,-151.0,0.000114,2]
[401348078,1768150238319,-500.0,0.00011507,2]
[401348079,1768150238328,-500.0,0.00011644,2]
[401348080,1768150238338,-348.51,0.000117,2]
[401348081,1768150238347,-151.0,0.000117,2]
[401348082,1768150238356,-500.0,0.00011781,2]
[401348083,1768150238365,-419.48022082,0.00011887,2]
[401348084,1768150238375,-154.94,0.000119,2]
[401348085,1768150238384,-500.0,0.00011918,2]
[401348086,1768150238394,-671.26,0.00012029,2]
[401348087,1768150238404,-671.26,0.00012029,2]
[401348088,1768150238414,-671.26,0.00012029,2]
[401348089,1768150238424,-671.26,0.00012029,2]
[401348090,1768150238433,-671.26,0.00012029,2]
[401348091,1768150238442,-671.26,0.00012029,2]
[401348092,1768150238452,-671.26,0.00012029,2]
[401348093,1768150238461,-316.7,0.00012029,2]
[401348094,1768150238470,-500.0,0.00012055,2]
[401348095,1768150238480,-1152.0,0.00012095,2]
[401348096,1768150238489,-151.0,0.000121,2]
[401348097,1768150238499,-500.0,0.00012192,2]
[401348098,1768150238509,-348.51,0.000122,2]
[401348099,1768150238519,-808.14,0.00012329,2]
[401348100,1768150238528,-500.0,0.00012329,2]
[401348101,1768150238538,-151.0,0.000124,2]
[401348102,1768150238548,-500.0,0.00012466,2]
[401348103,1768150238558,-1000.0,0.00012498,2]
[401348104,1768150238567,-244.0,0.00012498,2]
[401348105,1768150238576,-151.0,0.000125,2]
[401348106,1768150238587,-500.0,0.00012603,2]
[401348107,1768150238597,-348.51,0.000127,2]
[401348108,1768150238607,-500.0,0.0001274,2]
[401348109,1768150238617,-154.94,0.000128,2]
[401348110,1768150238627,-500.0,0.00012877,2]
[401348111,1768150238638,-151.0,0.000129,2]
[401348112,1768150238647,-500.0,0.00013014,2]
[401348113,1768150238657,-500.0,0.00013151,2]
[401348114,1768150238669,-348.51,0.000132,2]
[401348115,1768150238678,-151.0,0.000132,2]
[401348116,1768150238688,-500.0,0.00013273,2]
[401348117,1768150238697,-500.0,0.00013273,2]
[401348118,1768150238706,-500.0,0.00013273,2]
[401348119,1768150238716,-500.0,0.00013273,2]
[401348120,1768150238725,-153.37341953,0.00013273,2]
[401348121,1768150238734,-500.0,0.00013273,2]
[401348122,1768150238744,-500.0,0.00013273,2]
[401348123,1768150238754,-500.0,0.00013273,2]
[401348124,1768150238763,-500.0,0.00013273,2]
[401348125,1768150238772,-500.0,0.00013273,2]
[401348126,1768150238781,-500.0,0.00013273,2]
[401348127,1768150238791,-500.0,0.00013273,2]
[401348128,1768150238800,-500.0,0.00013273,2]
[401348129,1768150238811,-500.0,0.00013273,2]
[401348130,1768150238821,-500.0,0.00013273,2]
[401348131,1768150238831,-500.0,0.00013273,2]
[401348132,1768150238841,-473.2526551,0.00013273,2]
[401348133,1768150238852,-500.0,0.00013273,2]
[401348134,1768150238862,-500.0,0.00013273,2]
[401348135,1768150238871,-500.0,0.00013273,2]
[401348136,1768150238882,-500.0,0.00013273,2]
[401348137,1768150238893,-500.0,0.00013273,2]
[401348138,1768150238903,-500.0,0.00013273,2]
[401348139,1768150238914,-500.0,0.00013273,2]
[401348140,1768150238925,-500.0,0.00013273,2]
[401348141,1768150238935,-500.0,0.00013273,2]
[401348142,1768150238944,-500.0,0.00013273,2]
[401348143,1768150238953,-500.0,0.00013273,2]
[401348144,1768150238963,-500.0,0.00013273,2]
[401348145,1768150238972,-500.0,0.00013273,2]
[401348146,1768150238981,-500.0,0.00013273,2]
[401348147,1768150238991,-500.0,0.00013273,2]
[401348148,1768150239001,-500.0,0.00013273,2]
[401348149,1768150239011,-500.0,0.00013273,2]
[401348150,1768150239021,-500.0,0.00013288,2]
[401348151,1768150239031,-1613.0,0.00013304,2]
[401348152,1768150239041,-500.0,0.00013425,2]
[401348153,1768150239051,-332.0,0.00013562,2]
[401348154,1768150239062,-151.0,0.000136,2]
[401348155,1768150239072,-300.0,0.00013673,2]
[401348156,1768150239082,-500.0,0.00013698,2]
[401348157,1768150239092,-500.0,0.00013698,2]
[401348158,1768150239102,-500.0,0.00013698,2]
[401348159,1768150239111,-500.0,0.00013698,2]
[401348160,1768150239121,-500.0,0.00013698,2]
[401348161,1768150239131,-500.0,0.00013698,2]
[401348162,1768150239141,-500.0,0.00013698,2]
[401348163,1768150239151,-534.57834013,0.00013698,2]
[401348164,1768150239162,-500.0,0.00013698,2]
[401348165,1768150239172,-500.0,0.00013698,2]
[401348166,1768150239183,-500.0,0.00013698,2]
[401348167,1768150239193,-500.0,0.00013698,2]
[401348168,1768150239203,-564.53140937,0.00013698,2]
[401348169,1768150239312,-740.96,0.00013698,2]
[401348170,1768150239322,-740.96,0.00013698,2]
[401348171,1768150239332,-740.96,0.00013698,2]
[401348172,1768150239341,-740.96,0.00013698,2]
[401348173,1768150239351,-740.96,0.00013698,2]
[401348174,1768150239360,-740.96,0.00013698,2]
[401348175,1768150239369,-740.96,0.00013698,2]
[401348176,1768150239379,-740.96,0.00013698,2]
[401348177,1768150239388,-740.96,0.00013698,2]
[401348178,1768150239397,-740.96,0.00013698,2]
[401348179,1768150239406,-740.96,0.00013698,2]
[401348180,1768150239416,-740.96,0.00013698,2]
[401348181,1768150239425,-740.96,0.00013698,2]
[401348182,1768150239435,-740.96,0.00013698,2]
[401348183,1768150239444,-740.96,0.00013698,2]
[401348184,1768150239454,-740.96,0.00013698,2]
[401348185,1768150239463,-740.96,0.00013698,2]
[401348186,1768150239473,-740.96,0.00013698,2]
[401348187,1768150239482,-740.96,0.00013698,2]
[401348188,1768150239492,-740.96,0.00013698,2]
[401348189,1768150239501,-740.96,0.00013698,2]
[401348190,1768150239511,-740.96,0.00013698,2]
[401348191,1768150239520,-740.96,0.00013698,2]
[401348192,1768150239529,-740.99614657,0.00013698,2]
[401348193,1768150239539,-1000.0,0.00013699,2]
[401348194,1768150239550,-4402.768495,0.00013699,2]
[401348195,1768150239559,-12011.786733,0.00013699,2]
[401348196,1768150239568,-500.0,0.00013699,2]
[401348197,1768150239578,-500.0,0.00013699,2]
[401348198,1768150239588,-500.0,0.00013699,2]
[401348199,1768150239597,-500.0,0.00013699,2]
[401348200,1768150239607,-500.0,0.00013699,2]
[401348201,1768150239616,-250.0,0.00013699,2]
[401348202,1768150239626,-500.0,0.00013699,2]
[401348203,1768150239635,-500.0,0.00013699,2]
[401348204,1768150239644,-500.0,0.00013699,2]
[401348205,1768150239653,-514.14829436,0.00013699,2]
[401348206,1768150239664,-500.0,0.00013699,2]
[401348207,1768150239674,-500.0,0.00013699,2]
[401348208,1768150239683,-500.0,0.00013699,2]
[401348209,1768150239693,-500.0,0.00013699,2]
[401348210,1768150239702,-500.0,0.00013699,2]
[401348211,1768150239711,-500.0,0.00013699,2]
[401348212,1768150239721,-500.0,0.00013699,2]
[401348213,1768150239730,-500.0,0.00013699,2]
[401348214,1768150239740,-500.0,0.00013699,2]
[401348215,1768150239750,-210.18768542,0.00013699,2]
[401348216,1768150239760,-500.0,0.00013699,2]
[401348217,1768150239770,-500.0,0.00013699,2]
[401348219,1768150239780,-500.0,0.00013699,2]
[401348221,1768150239789,-252.81793801,0.00013699,2]
[401348222,1768150239799,-500.0,0.00013699,2]
[401348224,1768150239808,-500.0,0.00013699,2]
[401348226,1768150239821,-500.0,0.00013699,2]
[401348228,1768150239831,-500.0,0.00013699,2]
[401348229,1768150239840,-500.0,0.00013699,2]
[401348230,1768150239849,-500.0,0.00013699,2]
[401348231,1768150239858,-500.0,0.00013699,2]
[401348232,1768150239867,-500.0,0.00013699,2]
[401348233,1768150239876,-366.95119537,0.00013699,2]
[401348234,1768150239887,-500.0,0.00013699,2]
[401348235,1768150239896,-500.0,0.00013699,2]
[401348236,1768150239905,-500.0,0.00013699,2]
[401348237,1768150239915,-500.0,0.00013699,2]
[401348238,1768150239925,-500.0,0.00013699,2]
[401348239,1768150239934,-500.0,0.00013699,2]
[401348240,1768150239943,-500.0,0.00013699,2]
[401348241,1768150239952,-348.51,0.000137,2]
[401348242,1768150239962,-154.94,0.000137,2]
[401348243,1768150239970,-1000.0,0.00013748,2]
[401348244,1768150239978,-492.0,0.00013748,2]
[401348245,1768150239988,-151.0,0.000138,2]
[401348247,1768150239997,-522.92,0.000138,2]
[401348249,1768150240006,-502.34729237,0.00013821,2]
[401348251,1768150240014,-1000.0,0.00013821,2]
[401348252,1768150240023,-1000.0,0.00013821,2]
[401348253,1768150240032,-1000.0,0.00013821,2]
[401348254,1768150240041,-1000.0,0.00013821,2]
[401348256,1768150240051,-1000.0,0.00013821,2]
[401348258,1768150240060,-1000.0,0.00013821,2]
[401348260,1768150240070,-1000.0,0.00013821,2]
[401348262,1768150240079,-1000.0,0.00013821,2]
[401348263,1768150240088,-1000.0,0.00013821,2]
[401348264,1768150240097,-889.43647634,0.00013821,2]
[401348266,1768150240107,-1002.2053155,0.00013821,2]
[401348268,1768150240116,-178.09775665,0.00013821,2]
[401348270,1768150240125,-1000.0,0.00013821,2]
[401348272,1768150240135,-1001.6206004,0.00013821,2]
[401348274,1768150240144,-1000.0,0.00013821,2]
[401348276,1768150240153,-1000.0,0.00013821,2]
[401348278,1768150240164,-1000.0,0.00013821,2]
[401348280,1768150240174,-1000.0,0.00013821,2]
[401348282,1768150240184,-1000.0,0.00013821,2]
[401348285,1768150240194,-1001.21467235,0.00013821,2]
[401348287,1768150240204,-1000.0,0.00013821,2]
[401348289,1768150240214,-331.89845241,0.00013821,2]
[401348291,1768150240224,-1000.0,0.00013821,2]
[401348293,1768150240233,-1000.0,0.00013821,2]
[401348295,1768150240244,-1000.0,0.00013821,2]
[401348297,1768150240254,-1000.0,0.00013821,2]
[401348299,1768150240264,-474.99966181,0.00013887,2]
[401348301,1768150240273,-151.0,0.00014,2]
[401348303,1768150240283,-151.0,0.00014,2]
[401348305,1768150240292,-348.51,0.000142,2]
[401348307,1768150240303,-600.0,0.00014221,2]
[401348309,1768150240312,-3983.3412936,0.00014229,2]
[401348311,1768150240322,-1000.0,0.00014247,2]
[401348313,1768150240331,-1000.0,0.00014247,2]
[401348315,1768150240340,-1000.0,0.00014247,2]
[401348317,1768150240350,-704.73550321,0.00014247,2]
[401348319,1768150240359,-1000.0,0.00014247,2]
[401348321,1768150240369,-525.59078617,0.00014247,2]
[401348323,1768150240378,-392.83683556,0.00014247,2]
[401348325,1768150240387,-1000.0,0.00014247,2]
[401348327,1768150240398,-1000.0,0.00014247,2]
[401348329,1768150240407,-1000.0,0.00014247,2]
[401348331,1768150240417,-1000.0,0.00014247,2]
[401348333,1768150240426,-502.56553603,0.00014247,2]
[401348335,1768150240435,-1000.0,0.00014247,2]
[401348337,1768150240445,-1000.0,0.00014247,2]
[401348339,1768150240455,-1000.0,0.00014247,2]
[401348341,1768150240465,-1000.0,0.00014247,2]
[401348343,1768150240474,-875.35271766,0.00014247,2]
[401348345,1768150240484,-1000.0,0.00014247,2]
[401348347,1768150240493,-1000.0,0.00014247,2]
[401348349,1768150240503,-1000.0,0.00014247,2]
[401348351,1768150240512,-1000.0,0.00014247,2]
[401348353,1768150240522,-1000.0,0.00014247,2]
[401348355,1768150240532,-1000.0,0.00014247,2]
[401348357,1768150240541,-505.42705469,0.00014247,2]
[401348359,1768150240550,-1000.0,0.00014247,2]
[401348361,1768150240560,-500.0,0.00014247,2]
[401348363,1768150240569,-1000.0,0.00014247,2]
[401348365,1768150240578,-1009.97698878,0.00014247,2]
[401348367,1768150240587,-1000.0,0.00014247,2]
[401348369,1768150240600,-1000.0,0.00014247,2]
[401348371,1768150240609,-1000.0,0.00014247,2]
[401348373,1768150240618,-1500.0,0.00014368,2]
[401348374,1768150240627,-1500.0,0.00014368,2]
[401348376,1768150240636,-1500.0,0.00014368,2]
[401348378,1768150240645,-559.27372905,0.00014368,2]
[401348380,1768150240655,-1500.0,0.00014368,2]
[401348383,1768150240665,-1500.0,0.00014368,2]
[401348384,1768150240674,-1374.83618263,0.00014368,2]
[401348386,1768150240683,-1500.0,0.00014368,2]
[401348388,1768150240693,-1500.0,0.00014368,2]
[401348390,1768150240702,-1151.39515074,0.00014368,2]
[401348392,1768150240711,-1495.14442511,0.00014368,2]
[401348394,1768150240720,-1054.02767991,0.00014368,2]
[401348396,1768150240730,-1500.0,0.00014368,2]
[401348398,1768150240739,-1603.18109463,0.00014368,2]
[401348400,1768150240748,-1500.0,0.00014368,2]
[401348402,1768150240757,-1500.0,0.00014368,2]
[401348405,1768150240770,-723.48736773,0.00014368,2]
[401348407,1768150240779,-1500.0,0.00014368,2]
[401348409,1768150240788,-1500.0,0.00014368,2]
[401348411,1768150240796,-1500.0,0.00014368,2]
[401348413,1768150240805,-151.0,0.000144,2]
[401348415,1768150240818,-151.0,0.000144,2]
[401348417,1768150240828,-154.94,0.000145,2]
[401348419,1768150240837,-5000.0,0.0001451,2]
[401348420,1768150240846,-2258.0,0.00014635,2]
[401348422,1768150240857,-348.51,0.000147,2]
[401348425,1768150240867,-100000.0,0.00014736,2]
[401348427,1768150240876,-900.0,0.00014768,2]
[401348428,1768150240887,-1000.0,0.00014795,2]
[401348430,1768150240896,-339.58703801,0.00014795,2]
[401348432,1768150240905,-1236.28209818,0.00014795,2]
[401348434,1768150240915,-1002.98816345,0.00014795,2]
[401348436,1768150240923,-976.33364724,0.00014795,2]
[401348438,1768150240933,-500.79965419,0.00014795,2]
[401348440,1768150240942,-1500.0,0.00014795,2]
[401348442,1768150240952,-804.72135436,0.00014795,2]
[401348444,1768150240961,-1500.0,0.00014795,2]
[401348446,1768150240970,-507.57819343,0.00014795,2]
[401348448,1768150240979,-1500.0,0.00014795,2]
[401348450,1768150240989,-1500.0,0.00014795,2]
[401348452,1768150240999,-516.76085072,0.00014795,2]
[401348454,1768150241008,-1500.0,0.00014795,2]
[401348456,1768150241017,-1500.0,0.00014795,2]
[401348458,1768150241027,-1500.0,0.00014795,2]